[Event "FIDE World School-ch O-13 2025"]
[Site "Vrnjacka Banja"]
[Date "2025.03.22"]
[Round "4.1"]
[White "Obidov, Biloliddin"]
[Black "Yurasov, Matfey"]
[Result "1/2-1/2"]
[Annotator "TA"]
[ECO "B22"]
[WhiteElo "2020"]
[BlackElo "2271"]
[PlyCount "113"]
[EventDate "2025.03.19"]
[EventType "swiss"]
[EventCountry "SRB"]
[SourceTitle "playchess.com"]
[Source "ChessBase"]
[SourceQuality "1"]
[TimeControl "5400+30"]

{[%evp 13,113,14,26,31,29,27,10,0,1,0,2,14,8,0,7,0,0,0,5,0,6,0,8,6,6,6,6,11,6,8,5,-54,19,22,32,18,21,14,12,13,29,0,0,0,0,0,11,-7,-6,-4,0,0,53,0,0,-18,-21,-9,-14,-18,-9,-8,-4,-85,-56,-322,-289,-383,-359,-312,-67,-103,-86,-20,-22,-668,-646,-601,-533,-473,-447,-672,0,-577,-577,-164,-233,-1209,-1018,-838,0,0,0,0,0,0,0,0,0,0,0,0]} 1. e4 {[%emt 0:00:01][%cal Be2e4,Be4e5][%mdl 32]} c5 {[%emt 0:03:02]} 2. Nf3 {[%emt 0:00:29]} e6 {[%emt 0:00:05]} 3. c3 {[%emt 0:01:26]} Nf6 {[%emt 0:00:25]} 4. e5 {[%emt 0:00:11]} Nd5 {[%emt 0:00:04]} 5. d4 {[%emt 0:00:05]} cxd4 {[%emt 0:02:17]} 6. cxd4 {[%emt 0:00:03]} d6 {[%emt 0:00:21]} 7. Bc4 {[%emt 0:01:03]} dxe5 {[%emt 0:00:05] 7...Be7 is becoming the main line.} 8. dxe5 {[%emt 0:00:07] B22: Sicilian: 2 c3.} Be7 {[%emt 0:00:10]} 9. O-O {[%emt 0:00:13]} O-O {[%emt 0:00:09]} 10. Bd2 {[%emt 0:04:19]} Bd7 {[%emt 0:17:29]} 11. Nc3 {[%emt 0:00:58]} Bc6 {[%emt 0:00:11]} 12. Qe2 {[%emt 0:06:48]} Nb6 {[%emt 0:07:58]} 13. Bd3 {[%emt 0:02:11]} N8d7 {[%emt 0:00:02]} 14. Bf4 {[%emt 0:08:13]} Nd5 {[%emt 0:00:53]} 15. Nxd5 {[%emt 0:01:57]} Bxd5 {[%emt 0:00:07]} 16. Rfd1 $146 {[%emt 0:00:34]} ({Predecessor:} 16. Rad1 Rc8 17. Rfe1 Nc5 18. Bb1 Qb6 19. Ng5 h6 20. Nh7 Rfd8 21. Qg4 Kh8 22. Qh5 {0-1 Perez Rodriguez,J (2162)-Ghader Pour,S (2025) Wch U20 Girls 22nd 2004 (6)}) 16... Qb6 {[%emt 0:02:39]} 17. Ng5 {[%emt 0:08:04]} Bxg5 {[%emt 0:06:09]} 18. Bxg5 {[%emt 0:00:01]} Nxe5 {[%emt 0:00:51]} 19. Qxe5 {[%emt 0:10:19] Black must now prevent Be3.} f6 {[%emt 0:00:07] [#]} 20. Bxf6 {[%emt 0:00:48]} Rxf6 {[%emt 0:00:06]} 21. Rd2 {[%emt 0:00:18]} Raf8 {[%emt 0:04:48][%cal Rf6f2]} 22. Qe3 {[%emt 0:02:59]} (22. Qe1 $11) 22... Qb4 {[%emt 0:05:56]} (22... Rxf2 $1 $15 23. Qxf2 (23. Qxb6 $2 Rxd2 24. Qd4 Rxg2+ 25. Kh1 Rg4+ $19) 23... Rxf2 24. Rxf2 g6) 23. a3 {[%emt 0:08:44]} Qh4 {[%emt 0:00:13]} (23... Qg4 24. Qg3 Qxg3 25. hxg3 Rd8) 24. Qg3 {[%emt 0:04:37]} (24. Qxa7 $2 Qg5 (24... Bxg2 $2 25. Qe3 $19) 25. Bxh7+ Kxh7 26. Rxd5 exd5 $19) 24... Qh6 {[%emt 0:05:55]} (24... Qxg3 25. hxg3 R6f7 26. Rc1 Rd8) 25. Rc2 {[%emt 0:01:14]} Rf4 {[%emt 0:00:13]} 26. Re1 {[%emt 0:03:17]} Qf6 {[%emt 0:00:42]} 27. Bf1 {[%emt 0:03:31]} h5 {[%emt 0:01:39][%cal Bh7h5,Bh5h4][%mdl 32]} 28. h3 {[%emt 0:02:22]} h4 {[%emt 0:01:32]} 29. Qe3 {[%emt 0:00:01]} Qg6 {[%emt 0:01:12]} 30. Qc1 {[%emt 0:06:27]} R4f5 {[%emt 0:06:46][%cal Bf4f5,Bf5g5,Bg5g3][%mdl 32]} 31. Re3 {[%emt 0:05:26]} Rg5 {[%emt 0:00:36][%cal Rg5g2] ( -> ...Rxg2+)} (31... a6 {simplifies} 32. Rce2 Rg5 33. f3 Rxf3 34. Rxf3 Bxf3 35. Rf2 Bc6) 32. f3 $1 {[%emt 0:00:33]} Bxf3 {[%emt 0:03:12]} ({Better is} 32... Rxf3 $11 33. Rxf3 Bxf3) 33. Rf2 {[%emt 0:01:21]} (33. Rxe6 $1 $14 Qxe6 (33... Rxg2+ $2 34. Rxg2 Qxe6 35. Bc4 $18) 34. Qxg5) 33... Rg3 {[%emt 0:06:19][%cal Og6g5] Counterplay White} 34. Qc3 {[%emt 0:04:00]} (34. Qc4 $5 Bd5 $8 (34... Rxh3 $2 35. Rxe6 b5 36. Rxg6+ $18) 35. Rxf8+ Kxf8 36. Qc5+ (36. Qxh4 $2 Rxg2+ 37. Kh1 Rg1+ 38. Kh2 Rh1#) (36. Qf4+ Kg8 $11) 36... Kg8 37. Qc8+ (37. Rxg3 hxg3 38. Qe3 Be4 $15) 37... Kf7 (37... Kh7 38. Bd3 $11) 38. Qd7+ Kf6 39. Qd8+ Kf7 40. Qc7+ (40. Qd7+ Kf8 $11) 40... Kg8 41. Qc8+ $11 (41. Qd8+ Kf7 $11)) 34... Bc6 $36 {[%emt 0:08:45][%mdl 2048] Black fights for an advantage.} 35. Rxf8+ {[%emt 0:00:46]} Kxf8 {[%emt 0:00:01]} 36. Rxg3 {[%emt 0:00:39]} hxg3 $11 {[%emt 0:00:52][%mdl 4096] Endgame KQB-KQB. Black is a pawn up.} 37. Qc5+ {[%emt 0:00:04]} (37. Qe5 {looks sharper.} Qf6 38. Qxg3 Qxb2 39. Qd6+) 37... Kf7 {[%emt 0:00:07]} 38. Qxa7 {[%emt 0:00:09]} (38. Qe5 $11) 38... Qe4 $17 {[%emt 0:01:41] and ...e5 would now be decisive} 39. b4 $2 {[%emt 0:02:06][%mdl 8192]} (39. Qb6 $1 $15) 39... e5 $1 $19 {[%emt 0:01:45]} 40. b5 {[%emt 0:01:59]} Bd5 {[%emt 0:00:04]} 41. a4 {[%emt 0:01:42]} Ke6 $2 {[%emt 0:02:38]} (41... Qd4+ $1 $19 42. Qxd4 exd4) 42. a5 $15 {[%emt 0:01:21]} Qd4+ {[%emt 0:03:48]} 43. Qxd4 {[%emt 0:00:02]} exd4 $17 {[%emt 0:00:01] KB-KB} 44. a6 $2 {[%emt 0:01:44][%mdl 8192] [#]} (44. Bd3 $11) 44... bxa6 $1 $19 {[%emt 0:00:56]} 45. bxa6 {[%emt 0:00:01]} Kd6 {[%emt 0:00:11]} 46. Bd3 {[%emt 0:03:17]} Kc5 {[%emt 0:01:01]} 47. Kf1 {[%emt 0:00:55] [#]} (47. h4 $142 Kb4 48. Be2 (48. a7 $2 Kc3 $19)) 47... g5 $2 {[%emt 0:00:06]} (47... Kb4 $1 $19 {[%cal Rb4c3]} 48. Be2 (48. a7 $2 Kc3 $19) 48... Kc3) 48. Be2 $2 {[%emt 0:01:06][%mdl 8192]} ({Don't blunder} 48. a7 $2 Kb6 49. Be2 Kxa7 $19) (48. Kg1 $1 $11) 48... Be4 {[%emt 0:00:17]} 49. Bg4 {[%emt 0:01:31]} Kb6 {[%emt 0:00:21]} 50. Bc8 {[%emt 0:01:13]} (50. Be2) 50... Bd3+ {[%emt 0:01:22]} 51. Ke1 {[%emt 0:00:48]} Kc7 $2 {[%emt 0:01:02]} (51... Bxa6 $19 52. Bf5 Bb7) 52. Bb7 $11 {[%emt 0:00:38] The position is equal.} Bb5 {[%emt 0:00:07]} (52... Kb6 $5 53. Kd2 $8 Bc4 $11 (53... Bxa6 54. Bxa6 Kxa6 55. Kd3 $18)) 53. Kd2 {[%emt 0:00:26]} Bc4 {[%emt 0:00:43]} 54. Kc2 {[%emt 0:00:12]} Kb6 {[%emt 0:02:28]} 55. Kd2 {[%emt 0:00:09]} Bb5 {[%emt 0:00:47]} (55... Bxa6 $2 56. Bxa6 Kc7 (56... Kxa6 $2 57. Kd3 $18) 57. Ke2 $18) (55... Bf1 $5) 56. Kc2 {[%emt 0:00:07]} Kc7 {[%emt 0:00:19]} (56... Bxa6 $2 57. Bxa6 Kc6 (57... Kxa6 $2 {perishes.} 58. Kd3 $18) 58. Kd3 $18) 57. Kd2 {[%emt 0:00:07] Whites escaped into a draw.   Weighted Error Value: White=0.48/Black=0.30  Loses game:     	White=3     	---        Missed win:     	---       	Black=2      Mistake:       	White=5     	Black=2      Inaccurate:     	White=2     	---        OK:         	White=15    	Black=20     Best:        	White=1     	Black=4      Strong:       	White=1     	Black=2      Brilliant:      	White=1     	---} 1/2-1/2

[Event "FIDE World School-ch O-13 2025"]
[Site "Vrnjacka Banja"]
[Date "2025.03.22"]
[Round "4.2"]
[White "Wijerathna, Vinuka Dihain"]
[Black "Yang, Maxwell"]
[Result "1/2-1/2"]
[Annotator "TA"]
[ECO "B23"]
[WhiteElo "2117"]
[BlackElo "1970"]
[PlyCount "101"]
[EventDate "2025.03.19"]
[EventType "swiss"]
[EventCountry "SRB"]
[SourceTitle "playchess.com"]
[Source "ChessBase"]
[SourceQuality "1"]
[TimeControl "5400+30"]

{[%evp 9,101,0,14,9,7,23,36,24,18,0,35,0,0,0,0,0,0,-6,51,50,59,56,60,60,69,65,67,61,199,197,190,48,58,63,64,0,64,0,77,66,64,59,89,87,94,81,82,80,79,87,88,79,79,79,97,98,98,95,91,87,89,36,36,36,59,63,71,56,56,58,212,193,202,191,275,56,62,36,36,36,56,55,56,36,51,43,51,51,51,36,56,56,49,49]} 1. e4 {[%emt 0:00:03]} c5 {[%emt 0:05:51]} 2. Nc3 {[%emt 0:00:04]} d6 {[%emt 0:00:16]} 3. d4 {[%emt 0:00:05]} cxd4 {[%emt 0:00:05]} 4. Qxd4 {[%emt 0:00:02]} Nc6 {[%emt 0:00:08]} 5. Qd2 {[%emt 0:00:03]} g6 {[%emt 0:00:04]} 6. b3 {[%emt 0:00:04] B23: Closed Sicilian: Lines without g3.} Bh6 {[%emt 0:00:30]} 7. f4 {[%emt 0:00:06]} f5 {[%emt 0:00:12]} 8. Bb2 {[%emt 0:00:11]} Nf6 {[%emt 0:00:06]} 9. O-O-O {[%emt 0:00:05]} Rf8 {[%emt 0:00:06]} 10. exf5 {[%emt 0:01:34]} Bxf5 {[%emt 0:00:41]} 11. Bb5 {[%emt 0:00:07]} Qb6 {[%emt 0:02:28]} 12. Nge2 {[%emt 0:02:00]} O-O-O $146 {[%emt 0:06:00]} (12... Ne4 13. Nxe4 Bxe4 14. Bxc6+ Qxc6 15. Kb1 e5 16. Rhe1 O-O-O 17. g3 Bf3 18. Qa5 Bxe2 19. Rxe2 exf4 20. Qxa7 {½-½ So,W (2767)-Volokitin,A (2627) FIDE Chess.com Grand Swiss 2019 (3)}) 13. Rhf1 {[%emt 0:26:26]} Kb8 {[%emt 0:10:07]} (13... e5 $11) 14. Bxc6 $14 {[%emt 0:05:41]} Qxc6 {[%emt 0:05:06]} 15. Nd4 {[%emt 0:00:27]} Qd7 {[%emt 0:01:16]} 16. Nxf5 {[%emt 0:01:53]} Qxf5 {[%emt 0:01:05]} 17. Kb1 {[%emt 0:07:15]} Rf7 {[%emt 0:07:43]} 18. g3 {[%emt 0:07:44]} e5 {[%emt 0:11:27] [#]} (18... Bg7 $14) 19. Nb5 $1 $18 {[%emt 0:22:09]} Ne4 {[%emt 0:05:40] Repels Qf2} 20. Qd3 {[%emt 0:01:51]} (20. Qa5 $18 b6 21. Qa4) 20... a6 $14 {[%emt 0:03:38] [#]} (20... exf4 $2 21. Nd4 Qd5 22. c4 $18) 21. g4 $1 {[%emt 0:09:07]} Qxg4 {[%emt 0:07:19]} 22. Qxe4 {[%emt 0:00:06]} (22. fxe5 $2 Rxf1 23. Qxf1 axb5 $19) ({Better is} 22. Bxe5 $14 axb5 23. Qxe4) 22... axb5 {[%emt 0:00:12]} ({Black should play} 22... Rxf4 $11 23. Qe1 axb5 (23... Rxf1 24. Qxf1 axb5 25. Bxe5 $11)) 23. Qd5 {[%emt 0:00:03]} (23. Bxe5 $14 Rfd7 24. Bd4) 23... Rfd7 {[%emt 0:24:38]} (23... Rxf4 $11 24. Rg1 (24. Qxb5 Qd7 $17) 24... Qd7) 24. fxe5 $16 {[%emt 0:03:29]} (24. Qxb5 Bxf4 25. Bc3 Rc8 $17 (25... Bxh2 $2 26. Ba5 $18)) 24... dxe5 {[%emt 0:00:06]} 25. Qxe5+ {[%emt 0:00:06]} (25. Bxe5+ $2 {loses.} Ka8 26. Bd6 Rxd6 $19) 25... Ka8 {[%emt 0:00:20]} 26. Rxd7 {[%emt 0:02:16]} Qxd7 {[%emt 0:00:06] [#]} 27. a4 $1 {[%emt 0:04:52] White is more active.} Qd5 {[%emt 0:02:40]} ({Worse is} 27... bxa4 28. Qa5+ Kb8 29. Be5+ (29. bxa4 b6 $18)) 28. axb5 {[%emt 0:02:08]} Qxe5 {[%emt 0:00:59]} 29. Bxe5 {[%emt 0:05:03][%mdl 4096] Endgame KRB-KRB. White is a pawn up.} Rd5 {[%emt 0:00:08][%csl LRb5,LRe5]} 30. Bg3 {[%emt 0:00:00]} Rxb5 {[%emt 0:02:53]} 31. Rf7 {[%emt 0:00:00]} Be3 {[%emt 0:00:19]} 32. Rxh7 {[%emt 0:00:00]} Rf5 {[%emt 0:00:51]} 33. Rd7 {[%emt 0:00:00]} Ka7 {[%emt 0:00:35]} 34. Kb2 {[%emt 0:00:00]} Bf2 {[%emt 0:00:50]} 35. Bxf2+ {[%emt 0:01:25]} (35. Rd3 $16) 35... Rxf2 {[%emt 0:00:10] KR-KR. White is a pawn up.} 36. h4 {[%emt 0:00:02]} Rf4 {[%emt 0:00:12]} 37. Rh7 {[%emt 0:00:06]} Rg4 {[%emt 0:00:09]} 38. c4 {[%emt 0:00:53]} Kb6 {[%emt 0:01:11]} 39. Kc3 {[%emt 0:00:07]} g5 $2 {[%emt 0:01:05]} (39... Ka6 $14) 40. Rh6+ {[%emt 0:00:55]} Ka7 {[%emt 0:00:34]} 41. h5 {[%emt 0:00:54] Threatens to win with Rg6.} Rh4 {[%emt 0:00:12]} (41... Rg3+ $142 42. Kb4 Rh3) 42. Kb4 $2 {[%emt 0:00:50]} (42. Kd3 $18) 42... g4 $14 {[%emt 0:00:26] White is slightly better.} 43. Rg6 {[%emt 0:01:01]} Rxh5 {[%emt 0:00:08]} 44. Rxg4 {[%emt 0:00:04]} Rf5 {[%emt 0:00:33]} 45. Rg7 {[%emt 0:00:12]} Rf6 {[%emt 0:00:34]} 46. Re7 {[%emt 0:00:53]} Rb6+ {[%emt 0:00:52]} 47. Kc3 {[%emt 0:00:05]} Rh6 {[%emt 0:03:29]} 48. b4 {[%emt 0:00:43]} Rh3+ {[%emt 0:00:00]} 49. Kb2 {[%emt 0:00:05]} Ka6 {[%emt 0:00:00]} 50. Re6+ {[%emt 0:00:07]} Ka7 {[%emt 0:00:00]} 51. c5 {[%emt 0:00:45] Weighted Error Value: White=0.22 (precise) /Black=0.22 (precise)   Missed win:     	White=1     	---        Mistake:       	White=4     	Black=6      Inaccurate:     	White=2     	Black=2      OK:         	White=20    	Black=17     Best:        	White=2     	Black=3      Strong:       	White=1     	---} 1/2-1/2

[Event "FIDE World School-ch O-13 2025"]
[Site "Vrnjacka Banja"]
[Date "2025.03.22"]
[Round "4.3"]
[White "Rusu, Lucas"]
[Black "Zharas, Aldiyar"]
[Result "1-0"]
[Annotator "TA"]
[ECO "B33"]
[WhiteElo "2049"]
[BlackElo "1924"]
[PlyCount "155"]
[EventDate "2025.03.19"]
[EventType "swiss"]
[EventCountry "SRB"]
[SourceTitle "playchess.com"]
[Source "ChessBase"]
[SourceQuality "1"]
[TimeControl "5400+30"]

{[%evp 26,155,4,-3,11,0,56,45,73,30,152,144,169,87,110,100,125,59,58,60,63,66,66,66,62,58,79,70,76,54,98,85,89,78,74,76,120,75,155,132,177,93,91,69,86,79,104,64,83,85,100,62,122,120,194,204,219,97,112,55,65,65,65,65,65,65,65,65,65,65,121,121,126,127,119,127,138,128,98,103,247,247,239,231,231,225,197,140,141,136,133,95,601,400,808,8,8,8,8,8,8,8,455,400,225,65,65,65,65,65,65,65,5113,5097,5097,1000,29971,29972,29976,29977,29977,29977,29980,29980,29979,29979,29979,29980,29978,29980,29979,29980]} 1. e4 {[%emt 0:00:01]} c5 {[%emt 0:00:07]} 2. Nf3 {[%emt 0:00:06]} Nc6 {[%emt 0:00:05]} 3. d4 {[%emt 0:00:04]} cxd4 {[%emt 0:00:03]} 4. Nxd4 {[%emt 0:00:03]} Nf6 {[%emt 0:00:06]} 5. Nc3 {[%emt 0:00:04]} e5 {[%emt 0:00:04]} 6. Ndb5 {[%emt 0:00:03][%cal Bd4b5,Bb5a3,Ba3c2,Bc2b4,Bb4d5][%mdl 32]} d6 {[%emt 0:00:05]} 7. Bg5 {[%emt 0:00:12]} a6 {[%emt 0:00:07]} 8. Na3 {[%emt 0:00:01]} b5 {[%emt 0:00:07]} 9. Nd5 {[%emt 0:01:47]} Be7 {[%emt 0:00:12]} 10. Bxf6 {[%emt 0:00:02]} Bxf6 {[%emt 0:00:07]} 11. c3 {[%emt 0:01:09]} Rb8 {[%emt 0:00:12]} 12. Nc2 {[%emt 0:06:16]} Bg5 {[%emt 0:00:27]} 13. g3 {[%emt 0:05:01]} O-O {[%emt 0:00:07]} 14. Bg2 {[%emt 0:00:13]} Be6 {[%emt 0:00:39] B33: Sicilian: Pelikan and Sveshnikov Variations.} 15. O-O {[%emt 0:05:29]} Ne7 {[%emt 0:02:46]} (15... a5 $11) 16. Ncb4 {[%emt 0:13:16]} Bxd5 {[%emt 0:03:55] White is slightly better.} 17. Nxd5 {[%emt 0:05:13]} f5 $146 {[%emt 0:03:23]} (17... Nxd5 $11 18. Qxd5 g6) ({Predecessor:} 17... Nxd5 18. Qxd5 Qc7 19. Rfd1 Rfd8 20. h4 Bf6 21. Bf1 Qc5 22. a3 g6 23. Qb3 Kg7 {1-0 Moskalenko,A (2524)-Nogerbek,K (2282) Titled Tuesday intern op 4th June blitz 2019 (2)}) 18. exf5 $16 {[%emt 0:04:06]} Nxf5 {[%emt 0:04:37]} 19. Qd3 {[%emt 0:04:38]} (19. Nb4 $18 {[%cal Ob4c6]} Qc8 20. a4) 19... Ne7 {[%emt 0:05:24]} 20. Rad1 {[%emt 0:02:27]} Kh8 {[%emt 1:17:57]} 21. Be4 {[%emt 0:16:48]} (21. h4 $1 $16 {[%cal Rh4g5]} Bf6 22. Ne3) 21... Nxd5 $14 {[%emt 0:00:00]} 22. Bxd5 {[%emt 0:00:23]} Rf6 {[%emt 0:00:00] Black is weak on the light squares} 23. h4 {[%emt 0:03:01]} Bh6 {[%emt 0:00:00]} 24. Be4 {[%emt 0:00:11]} g6 {[%emt 0:00:00]} 25. Kg2 $36 {[%emt 0:08:00][%mdl 2048] White fights for an advantage.} Qb6 {[%emt 0:00:00]} 26. f3 {[%emt 0:01:43]} Rd8 {[%emt 0:00:00]} 27. h5 {[%emt 0:07:24]} Kg7 {[%emt 0:00:00]} 28. hxg6 {[%emt 0:00:45]} hxg6 {[%emt 0:00:00]} 29. Rh1 {[%emt 0:02:11][%cal Oh1h6]} Qc5 {[%emt 0:00:00][%cal Od6d5]} 30. Bd5 {[%emt 0:01:39][%cal Oh1h6,Be4d5,Bd5b3,Bb3c2][%mdl 32]} Rh8 {[%emt 0:00:00]} 31. Qe4 {[%emt 0:00:58]} a5 {[%emt 0:00:00]} (31... Qe3) 32. Bb3 $1 $16 {[%emt 0:00:57]} Qc7 {[%emt 0:00:00] Wards off Qb7} 33. Rh3 {[%emt 0:01:06]} (33. a3 $18) 33... a4 {[%emt 0:00:00]} 34. Bc2 {[%emt 0:00:18] White has more active pieces.} a3 {[%emt 0:00:00]} 35. bxa3 {[%emt 0:03:23][%csl Ob5,Og6] Black has weak pawns} Qxc3 {[%emt 0:00:00][%cal Oh8f8]} 36. Bb3 $1 {[%emt 0:00:26]} Rhf8 $1 {[%emt 0:00:00][%cal Rf6f3]} 37. Rf1 {[%emt 0:02:12][%cal Bd1f1,Bf1f2,Bf2c2][%mdl 32] Really sharp!} (37. Qb7+ $2 R6f7 38. Qe4 Rxf3 $19) 37... Rc8 {[%emt 0:00:00]} 38. Rf2 {[%emt 0:01:13]} Qa5 {[%emt 0:00:00]} (38... Qc6 $1 $14) 39. Qh4 {[%emt 0:00:31][%csl Gh3][%cal Rh4h6]} Rh8 {[%emt 0:00:00]} (39... g5 $16 {is a better defense.} 40. Qg4 Rc7) 40. Rc2 $18 {[%emt 0:00:28]} Qd8 {[%emt 0:00:00] [#]} 41. Qe4 {[%emt 0:01:37]} (41. g4 $1 $18 {[%cal Rg4g5] and White stays clearly on top. and g5 would now be decisive} g5 (41... d5 $2 42. g5 $18) 42. Qf2) 41... Qd7 {[%emt 0:00:00]} 42. Qd5 {[%emt 0:01:30]} (42. Rh4 $16) 42... Rff8 {[%emt 0:00:00]} 43. Qc6 $1 {[%emt 0:02:40]} Qxc6 {[%emt 0:00:00]} 44. Rxc6 {[%emt 0:00:03]} Rc8 {[%emt 0:00:00] Inhibits Rc7+.} 45. Rxd6 {[%emt 0:00:41]} Rhd8 {[%emt 0:00:00] Wards off Rd7+} 46. Rxd8 {[%emt 0:03:11]} Rxd8 $14 {[%emt 0:00:00][%mdl 4096] Endgame KRB-KRB. White is a pawn up.} 47. Rh4 {[%emt 0:00:00]} Rd4 {[%emt 0:00:00]} ({Black should try} 47... Rd2+ $14 48. Kh3 Rf2) 48. Rxd4 $16 {[%emt 0:00:00]} exd4 {[%emt 0:00:00] KB-KB. White is a pawn up.} 49. Bc2 {[%emt 0:00:00]} Bc1 {[%emt 0:00:00] [#]} 50. Bd3 $1 {[%emt 0:00:00]} Bxa3 {[%emt 0:00:00]} 51. Bxb5 {[%emt 0:00:00]} g5 {[%emt 0:00:00]} 52. f4 {[%emt 0:00:00]} gxf4 {[%emt 0:00:00]} (52... Kf6 $16) 53. gxf4 $18 {[%emt 0:00:00]} Kf6 {[%emt 0:00:00]} 54. Kf3 {[%emt 0:00:00]} Ke6 {[%emt 0:00:00]} 55. Ke4 {[%emt 0:00:00]} Bc5 {[%emt 0:00:00]} 56. Bc4+ {[%emt 0:00:00]} (56. Bd3 $18) 56... Kd6 $16 {[%emt 0:00:00]} 57. f5 {[%emt 0:00:05]} Bb6 {[%emt 0:00:00]} 58. f6 {[%emt 0:02:32]} Bc5 $2 {[%emt 0:00:00][%mdl 8192]} (58... Kd7 $16 59. Bf7 Kd6) 59. Kf5 $18 {[%emt 0:00:19]} Ba3 {[%emt 0:00:00]} (59... Kc6 $142 60. Ke6 Bf8) 60. Kg6 $2 {[%emt 0:00:25]} (60. Bd3 $18 Kc5 61. f7) 60... Kc5 $1 $11 {[%emt 0:00:00]} 61. Bd3 {[%emt 0:00:15]} Kb4 $1 {[%emt 0:00:00]} 62. Kf5 {[%emt 0:02:22]} Kc3 {[%emt 0:00:00]} 63. Ke4 {[%emt 0:00:04]} Bc5 $2 {[%emt 0:00:00][%mdl 8192]} (63... Kd2 $11 {and Black has nothing to worry.}) 64. a4 $18 {[%emt 0:00:29] Intending a5 and mate.} Kb4 {[%emt 0:00:00]} 65. Kd5 $2 {[%emt 0:00:08]} ({White should play} 65. Bb5 $18) 65... Bf8 $1 $14 {[%emt 0:00:00]} 66. Bc2 $1 {[%emt 0:00:05]} ({But not} 66. Kxd4 Kxa4 67. Bc4 Ka5 $11) 66... d3 $1 {[%emt 0:00:00][%cal Bd4d3,Bd3d2][%mdl 32]} 67. Bd1 $1 {[%emt 0:00:07]} Ka5 {[%emt 0:05:37]} 68. Ke6 {[%emt 0:00:12]} Kb6 $2 {[%emt 0:00:21][%mdl 8192]} (68... d2 $14 69. f7 Bg7) 69. Kf7 $18 {[%emt 0:00:08]} Bb4 {[%emt 0:00:14]} 70. Ke8 {[%emt 0:00:08]} (70. Kg8 $142 d2 71. f7) 70... d2 {[%emt 0:00:38]} 71. f7 {[%emt 0:00:04] White mates.} Ka5 {[%emt 0:00:15]} 72. f8=Q {[%emt 0:00:18]} Bxf8 {[%emt 0:00:06]} 73. Kxf8 {[%emt 0:00:00] KB-KP} Kb4 {[%emt 0:00:09]} 74. Ke7 {[%emt 0:00:03]} Kc5 {[%emt 0:00:27]} 75. Ke6 {[%emt 0:00:06]} Kc6 {[%emt 0:00:06]} 76. Ke5 {[%emt 0:00:04]} Kc5 {[%emt 0:00:04]} 77. Ke4 {[%emt 0:00:03]} Kc4 {[%emt 0:00:07]} 78. Ke3 {[%emt 0:00:04] Weighted Error Value: White=0.30/Black=0.39  Loses game:     	---       	Black=3      Mistake:       	White=7     	Black=8      Inaccurate:     	White=3     	Black=4      OK:         	White=21    	Black=11     Best:        	White=5     	Black=4      Strong:       	White=6     	Black=5} 1-0